{"text_format":"3","workbook":"xlsx","n_sheets":1,"sheets":["СПИСЪК НА НАЛИЧНОТО ОБОРУДВАНЕ"],"not_rendered":{"defined_names":5},"read":"whole","date_system":"1900"}

{"sheet":"СПИСЪК НА НАЛИЧНОТО ОБОРУДВАНЕ","index":0,"n_rows":9,"n_cols":19,"rows_kept":9,"merged":[[0,1,0,5],[0,6,0,9],[0,10,0,12],[0,13,0,14],[2,1,2,6],[2,7,2,18]]}
[null,"СПИСЪК НА НАЛИЧНОТО ОБОРУДВАНЕ"]
[]
[null,"ФИЗИЧЕСКО СЪСТОЯНИЕ",{"$nulls":5},"ФИНАНСОВО СЪСТОЯНИЕ"]
[null,"Номер на актив или пореден номер","Описание на елемента (марка и модел)","Място","Състояние","Доставчик","Оставащи години на използване ","Първоначална\nстойност","Авансово плащане","Дата на закупуване или лизинг","Срок на кредита\nв години","Ставка на кредита","Месечна вноска","Месечни оперативни разходи","Общ месечен разход","Очаквана стойност в края на срока на кредита","Годишна амортизация по права линия","Месечна амортизация по права линия","Текуща стойност"]
[null,123,"Марка Модел","Основен клон","Добро","местен",5,{"v":30000,"d":"30,000.00 лв."},{"v":5000,"d":"5,000.00 лв."},{"$f":"DATE(YEAR(TODAY())-2, 1,1)","v":"2016-01-01"},4,{"v":0.1,"d":"10.00%"},{"$f":"IFERROR(IF(AND(Данни[[#This Row],[Първоначална\nстойност]]>0,Данни[[#This Row],[Първоначална\nстойност]]<>Данни[[#This Row],[Авансово плащане]]),-1*PMT(Данни[[#This Row],[Ставка на кредита]]/12,Данни[[#This Row],[Срок на кредита\nв години]]*12,Данни[[#This Row],[Първоначална\nстойност]]-Данни[[#This Row],[Авансово плащане]]),0),0)","v":{"v":634.0645858686797,"d":"634.06 лв."}},{"v":200,"d":"200.00 лв."},{"$f":"IFERROR(Данни[[#This Row],[Месечни оперативни разходи]]+Данни[[#This Row],[Месечна вноска]],\"\")","v":{"v":834.0645858686797,"d":"834.06 лв."}},{"v":20000,"d":"20,000.00 лв."},{"$f":"IFERROR(IF(Данни[[#This Row],[Първоначална\nстойност]]>0,SLN(Данни[[#This Row],[Първоначална\nстойност]],Данни[[#This Row],[Очаквана стойност в края на срока на кредита]],Данни[[#This Row],[Оставащи години на използване ]]),0),0)","v":{"v":2000,"d":"2,000.00 лв."}},{"$f":"IFERROR(Данни[[#This Row],[Годишна амортизация по права линия]]/12,0)","v":{"v":166.66666666666666,"d":"166.67 лв."}},{"$f":"IFERROR(Данни[[#This Row],[Първоначална\nстойност]]-(Данни[[#This Row],[Годишна амортизация по права линия]]*((TODAY()-Данни[[#This Row],[Дата на закупуване или лизинг]])/365)),0)","v":{"v":25013.698630136987,"d":"25,013.70 лв."}}]
[null,456,"Марка Модел","Основен клон","Отлично","местен",3,{"v":5000,"d":"5,000.00 лв."},{"v":5000,"d":"5,000.00 лв."},{"$f":"DATE(YEAR(TODAY())-1, 1,1)","v":"2017-01-01"},null,null,{"$f":"IFERROR(IF(AND(Данни[[#This Row],[Първоначална\nстойност]]>0,Данни[[#This Row],[Първоначална\nстойност]]<>Данни[[#This Row],[Авансово плащане]]),-1*PMT(Данни[[#This Row],[Ставка на кредита]]/12,Данни[[#This Row],[Срок на кредита\nв години]]*12,Данни[[#This Row],[Първоначална\nстойност]]-Данни[[#This Row],[Авансово плащане]]),0),0)","v":{"v":0,"d":"0.00 лв."}},{"v":20,"d":"20.00 лв."},{"$f":"IFERROR(Данни[[#This Row],[Месечни оперативни разходи]]+Данни[[#This Row],[Месечна вноска]],\"\")","v":{"v":20,"d":"20.00 лв."}},null,{"$f":"IFERROR(IF(Данни[[#This Row],[Първоначална\nстойност]]>0,SLN(Данни[[#This Row],[Първоначална\nстойност]],Данни[[#This Row],[Очаквана стойност в края на срока на кредита]],Данни[[#This Row],[Оставащи години на използване ]]),0),0)","v":{"v":1666.6666666666667,"d":"1,666.67 лв."}},{"$f":"IFERROR(Данни[[#This Row],[Годишна амортизация по права линия]]/12,0)","v":{"v":138.88888888888889,"d":"138.89 лв."}},{"$f":"IFERROR(Данни[[#This Row],[Първоначална\nстойност]]-(Данни[[#This Row],[Годишна амортизация по права линия]]*((TODAY()-Данни[[#This Row],[Дата на закупуване или лизинг]])/365)),0)","v":{"v":2515.981735159817,"d":"2,515.98 лв."}}]
[null,789,"Марка Модел","Източен бряг","Средно","местен",6,{"v":50000,"d":"50,000.00 лв."},{"v":20000,"d":"20,000.00 лв."},{"$f":"TODAY()","v":"2018-06-29"},5,{"v":0.05,"d":"5.00%"},{"$f":"IFERROR(IF(AND(Данни[[#This Row],[Първоначална\nстойност]]>0,Данни[[#This Row],[Първоначална\nстойност]]<>Данни[[#This Row],[Авансово плащане]]),-1*PMT(Данни[[#This Row],[Ставка на кредита]]/12,Данни[[#This Row],[Срок на кредита\nв години]]*12,Данни[[#This Row],[Първоначална\nстойност]]-Данни[[#This Row],[Авансово плащане]]),0),0)","v":{"v":566.137009320328,"d":"566.14 лв."}},{"v":40,"d":"40.00 лв."},{"$f":"IFERROR(Данни[[#This Row],[Месечни оперативни разходи]]+Данни[[#This Row],[Месечна вноска]],\"\")","v":{"v":606.137009320328,"d":"606.14 лв."}},{"v":1500,"d":"1,500.00 лв."},{"$f":"IFERROR(IF(Данни[[#This Row],[Първоначална\nстойност]]>0,SLN(Данни[[#This Row],[Първоначална\nстойност]],Данни[[#This Row],[Очаквана стойност в края на срока на кредита]],Данни[[#This Row],[Оставащи години на използване ]]),0),0)","v":{"v":8083.333333333333,"d":"8,083.33 лв."}},{"$f":"IFERROR(Данни[[#This Row],[Годишна амортизация по права линия]]/12,0)","v":{"v":673.6111111111111,"d":"673.61 лв."}},{"$f":"IFERROR(Данни[[#This Row],[Първоначална\nстойност]]-(Данни[[#This Row],[Годишна амортизация по права линия]]*((TODAY()-Данни[[#This Row],[Дата на закупуване или лизинг]])/365)),0)","v":{"v":50000,"d":"50,000.00 лв."}}]
[{"$nulls":12},{"$f":"IFERROR(IF(AND(Данни[[#This Row],[Първоначална\nстойност]]>0,Данни[[#This Row],[Първоначална\nстойност]]<>Данни[[#This Row],[Авансово плащане]]),-1*PMT(Данни[[#This Row],[Ставка на кредита]]/12,Данни[[#This Row],[Срок на кредита\nв години]]*12,Данни[[#This Row],[Първоначална\nстойност]]-Данни[[#This Row],[Авансово плащане]]),0),0)","v":{"v":0,"d":"0.00 лв."}},null,{"$f":"IFERROR(Данни[[#This Row],[Месечни оперативни разходи]]+Данни[[#This Row],[Месечна вноска]],\"\")","v":{"v":0,"d":"0.00 лв."}},null,{"$f":"IFERROR(IF(Данни[[#This Row],[Първоначална\nстойност]]>0,SLN(Данни[[#This Row],[Първоначална\nстойност]],Данни[[#This Row],[Очаквана стойност в края на срока на кредита]],Данни[[#This Row],[Оставащи години на използване ]]),0),0)","v":{"v":0,"d":"0.00 лв."}},{"$f":"IFERROR(Данни[[#This Row],[Годишна амортизация по права линия]]/12,0)","v":{"v":0,"d":"0.00 лв."}},{"$f":"IFERROR(Данни[[#This Row],[Първоначална\nстойност]]-(Данни[[#This Row],[Годишна амортизация по права линия]]*((TODAY()-Данни[[#This Row],[Дата на закупуване или лизинг]])/365)),0)","v":{"v":0,"d":"0.00 лв."}}]
[{"$nulls":12},{"$f":"IFERROR(IF(AND(Данни[[#This Row],[Първоначална\nстойност]]>0,Данни[[#This Row],[Първоначална\nстойност]]<>Данни[[#This Row],[Авансово плащане]]),-1*PMT(Данни[[#This Row],[Ставка на кредита]]/12,Данни[[#This Row],[Срок на кредита\nв години]]*12,Данни[[#This Row],[Първоначална\nстойност]]-Данни[[#This Row],[Авансово плащане]]),0),0)","v":{"v":0,"d":"0.00 лв."}},null,{"$f":"IFERROR(Данни[[#This Row],[Месечни оперативни разходи]]+Данни[[#This Row],[Месечна вноска]],\"\")","v":{"v":0,"d":"0.00 лв."}},null,{"$f":"IFERROR(IF(Данни[[#This Row],[Първоначална\nстойност]]>0,SLN(Данни[[#This Row],[Първоначална\nстойност]],Данни[[#This Row],[Очаквана стойност в края на срока на кредита]],Данни[[#This Row],[Оставащи години на използване ]]),0),0)","v":{"v":0,"d":"0.00 лв."}},{"$f":"IFERROR(Данни[[#This Row],[Годишна амортизация по права линия]]/12,0)","v":{"v":0,"d":"0.00 лв."}},{"$f":"IFERROR(Данни[[#This Row],[Първоначална\nстойност]]-(Данни[[#This Row],[Годишна амортизация по права линия]]*((TODAY()-Данни[[#This Row],[Дата на закупуване или лизинг]])/365)),0)","v":{"v":0,"d":"0.00 лв."}}]